[Event "FIDE WCCC U12 2018"]
[Site "Santiago de Compostela"]
[Date "2018.11.12"]
[Round "8"]
[White "Tyurin, Artem"]
[Black "Klimkowski, Jan"]
[Result "1-0"]
[ECO "B90"]
[WhiteElo "2018"]
[BlackElo "1810"]
[Annotator "NA RC"]
[PlyCount "63"]
[EventDate "2018.11.04"]
[EventType "swiss"]
[EventCountry "ESP"]
[SourceTitle "playchess.com"]
[Source "ChessBase"]
[SourceQuality "1"]
[TimeControl "40/5400+30:1800+30"]

{[%evp 35,63,52,76,56,104,32767,114,27,101,67,171,170,230,213,272,279,307,244,238,283,380,426,523,494,718,745,830,738,869,775]} 1. e4 {[%emt 0:00:00]} c5 {[%emt 0:00:00]} 2. Nf3 {[%emt 0:00:00]} d6 {[%emt 0:00:00]} 3. d4 {[%emt 0:00:00]} cxd4 {[%emt 0:00:00]} 4. Nxd4 {[%emt 0:00:00]} Nf6 {[%emt 0:00:03]} 5. Nc3 {[%emt 0:00:00]} a6 {[%emt 0:00:04]} 6. Be3 {[%emt 0:00:00]} e5 {[%emt 0:00:48]} 7. Nb3 {[%emt 0:00:05]} Be6 {[%emt 0:01:22]} 8. f3 {[%emt 0:00:11]} Nbd7 {[%emt 0:00:11]} 9. Qd2 {[%emt 0:00:29]} h5 {[%emt 0:00:20]} 10. Nd5 {[%emt 0:01:06] B90: Sicilian Najdorf: Unusual White 6th moves, 6 Be3 Ng4 and 6 Be3 e5} Bxd5 {[%emt 0:00:28]} 11. exd5 {[%emt 0:00:02]} Be7 {[%emt 0:00:54]} (11... g6 12. Be2 Rc8 13. c4 Bg7 14. O-O O-O 15. Na5 Qc7 16. Rac1 e4 {1-0 (52) Duda,J (2737)-Karjakin,S (2773) chess.com INT 2018}) 12. Be2 {[%emt 0:01:41]} Rc8 {[%emt 0:03:33]} 13. Na5 {[%emt 0:05:02]} Qc7 {[%emt 0:06:39]} 14. c4 {[%emt 0:01:18]} O-O {[%emt 0:02:00]} 15. O-O {[%emt 0:01:18]} e4 {[%emt 0:09:46]} 16. f4 $146 {[%emt 0:04:13]} ({Predecessor:} 16. b4 h4 {1-0 (32) Staratorzhsky,V (2200)-Marchisotti,M (2275) ICCF email 2006}) 16... Ng4 {[%emt 0:05:01]} 17. Bxg4 {[%emt 0:02:14]} hxg4 {[%emt 0:01:11]} 18. b4 {[%emt 0:03:43]} f5 {[%emt 0:15:15]} 19. Rfc1 {[%emt 0:01:27]} Bf6 {[%emt 0:01:33]} 20. Rab1 {[%emt 0:00:45]} b6 {[%emt 0:12:36]} 21. Nb3 {[%emt 0:04:31]} (21. Nc6 $16) 21... Qd8 {[%emt 0:10:38]} (21... Rb8 $11 {hält das Gleichgewicht.}) 22. a4 {[%emt 0:01:51]} Re8 {[%emt 0:07:27]} (22... g5 $16) 23. a5 {[%emt 0:02:02]} bxa5 {[%emt 0:01:58]} 24. Nxa5 {[%emt 0:00:14]} Qe7 {[%emt 0:04:01] [#]} 25. c5 $1 {[%emt 0:05:22]} Qf7 {[%emt 0:06:08]} 26. Nb7 {[%emt 0:02:31]} ({Not} 26. cxd6 Nb8 $16) 26... Be7 {[%emt 0:01:08]} 27. cxd6 {[%emt 0:03:27]} Bf6 {[%emt 0:00:52]} (27... Rb8 $142 28. dxe7 Rxb7) 28. Rc7 {[%emt 0:00:31]} g5 {[%emt 0:02:41]} 29. Rbc1 {[%emt 0:03:46]} Ra8 {[%emt 0:01:13]} (29... gxf4 $142 30. Bxf4 Ra8) 30. fxg5 {[%emt 0:01:10]} Be5 {[%emt 0:00:12]} 31. g3 {[%emt 0:01:17]} Rab8 {[%emt 0:01:27] [#]} 32. g6 $18 {[%emt 0:01:09]} 1-0

[Event "FIDE WCCC U12 2018"]
[Site "Santiago de Compostela"]
[Date "2018.11.12"]
[Round "8"]
[White "Paduano, Claudio"]
[Black "Windram, James"]
[Result "1-0"]
[ECO "A70"]
[WhiteElo "2017"]
[BlackElo "1704"]
[Annotator "NA RC"]
[PlyCount "81"]
[EventDate "2018.11.04"]
[EventType "swiss"]
[EventCountry "ESP"]
[SourceTitle "playchess.com"]
[Source "ChessBase"]
[SourceQuality "1"]
[TimeControl "40/5400+30:1800+30"]

1. d4 Nf6 2. c4 c5 3. d5 e6 4. Nc3 exd5 5. cxd5 d6 6. e4 g6 7. Nf3 Bg7 8. Bd3 a6 9. a4 Bg4 10. Bf4 Nh5 11. Be3 Nd7 12. Be2 $1 O-O 13. O-O Bxf3 14. Bxf3 Nhf6 15. Bf4 Qe7 16. h3 {A61: Modern Benoni: Nf3 without early e4} Ne5 17. Be2 Ne8 18. Bh2 $146 ({Predecessor:} 18. Re1 g5 19. Bg3 Ng6 20. Qb3 Be5 21. Bxe5 Nxe5 22. Nd1 Ng7 23. Ne3 f5 24. exf5 Nxf5 25. Nxf5 Rxf5 {½-½ (50) Tsiganova,M (2239)-Prudnikova,S (2419) Warsaw 2001}) 18... f5 19. f4 Nd7 20. exf5 Rxf5 (20... gxf5 $11 {keeps the balance.} 21. Re1 Qe3+ 22. Kh1 Bxc3 23. bxc3 Qxc3) 21. Bg4 Qe3+ (21... Rf8 $16) 22. Kh1 Rf7 $2 (22... Bxc3 23. Bxf5 (23. bxc3 Ng7 $18) 23... gxf5) 23. Bg1 Qe7 24. Be6 Nc7 25. Bxf7+ Qxf7 26. Qd3 Nb6 27. Rad1 Bxc3 28. bxc3 Nxa4 29. Qc2 b5 30. f5 Qg7 31. fxg6 hxg6 32. Rf3 Nb6 (32... Rf8 $142) 33. Rg3 Kh7 34. Qe4 $18 Re8 35. Qh4+ Qh6 36. Qf6 Qg7 37. Qxd6 Nc4 38. Qxc5 Qe5 39. Rg4 Nb2 40. Rh4+ Kg7 41. Bd4 1-0

[Event "FIDE WCCC U12 2018"]
[Site "Santiago de Compostela"]
[Date "2018.11.12"]
[Round "8"]
[White "Park, Evan"]
[Black "Creanga, Robert-Ionut"]
[Result "0-1"]
[ECO "B31"]
[WhiteElo "1997"]
[BlackElo "2066"]
[Annotator "NA RC"]
[PlyCount "90"]
[EventDate "2018.11.04"]
[EventType "swiss"]
[EventCountry "ESP"]
[SourceTitle "playchess.com"]
[Source "ChessBase"]
[SourceQuality "1"]
[TimeControl "40/5400+30:1800+30"]

{[%evp 28,90,34,12,7,16,21,0,0,0,27,16,15,0,-1,-8,11,9,25,20,28,18,19,0,5,2,0,0,0,0,0,32767,32767,32767,32767,32767,32767,-7,32767,0,0,0,0,0,0,-22,32767,-66,-49,-43,32767,32767,32767,32767,32767,-125,32767,32767,0,0,0,0,0,0,-18]} 1. e4 {[%emt 0:00:00]} c5 {[%emt 0:00:00]} 2. Nf3 {[%emt 0:00:00]} Nc6 {[%emt 0:00:00]} 3. Bb5 {[%emt 0:00:00]} g6 {[%emt 0:00:00]} 4. O-O {[%emt 0:00:00]} Bg7 {[%emt 0:00:13]} 5. Re1 {[%emt 0:00:03]} Nf6 {[%emt 0:01:05]} 6. e5 {[%emt 0:00:21]} Nd5 {[%emt 0:00:15]} 7. Nc3 {[%emt 0:00:05]} Nc7 {[%emt 0:16:31]} 8. Bxc6 {[%emt 0:00:13]} dxc6 {[%emt 0:00:17]} 9. Ne4 {[%emt 0:02:09]} Ne6 {[%emt 0:06:48]} 10. d3 {[%emt 0:01:31]} O-O {[%emt 0:02:34]} 11. Be3 {[%emt 0:00:06]} b6 {[%emt 0:10:32]} 12. Qd2 {[%emt 0:02:21]} Nd4 {[%emt 0:04:48]} 13. Nxd4 {[%emt 0:01:26]} cxd4 {[%emt 0:00:02]} 14. Bh6 {[%emt 0:00:08]} Qd5 {[%emt 0:10:18] B31: Sicilian: 2...Nc6 3 Bb5 g6} (14... c5 15. h4 Qd5 16. Bxg7 Kxg7 17. Ng3 Bb7 18. f3 Qe6 19. b3 {½-½ (19) Bacrot,E (2714)-Moiseenko,A (2699) Tromsoe 2013}) 15. Bxg7 {[%emt 0:06:39]} Kxg7 {[%emt 0:01:30]} 16. Qg5 {[%emt 0:04:50] LiveBook: 6 Games} Qd8 {[%emt 0:03:31]} 17. h4 {[%emt 0:07:15]} Be6 $146 {[%emt 0:13:53]} ({Predecessor:} 17... h5 18. a4 a5 19. Re2 Be6 20. f3 Rh8 21. Qf4 c5 22. b3 {½-½ (31) Pulkkinen,K (2319)-Holmsten,A (2410) Finland 2002}) 18. h5 {[%emt 0:05:48]} Rc8 {[%emt 0:04:39]} (18... h6 $5 {[%cal Rh6g5]} 19. Qg3 Rc8 $11) 19. Qh4 {[%emt 0:04:26]} h6 {[%emt 0:06:23]} 20. a4 {[%emt 0:08:55]} c5 {[%emt 0:05:09]} 21. b3 {[%emt 0:03:13]} Qd7 {[%emt 0:01:48]} 22. f4 {[%emt 0:04:58]} a6 {[%emt 0:02:00]} 23. Rf1 {[%emt 0:05:00]} Bg4 {[%emt 0:01:38]} 24. hxg6 {[%emt 0:01:53]} fxg6 {[%emt 0:00:13]} 25. Qg3 {[%emt 0:02:52]} Bf5 {[%emt 0:01:12]} 26. Qf3 {[%emt 0:02:04]} Bg4 {[%emt 0:00:26]} 27. Qf2 {[%emt 0:01:44]} a5 {[%emt 0:01:52]} 28. Rae1 {[%emt 0:02:43]} Rf7 {[%emt 0:00:32]} 29. Qd2 {[%emt 0:01:34]} Rcf8 {[%emt 0:00:32]} 30. Ng3 {[%emt 0:01:33]} Be6 {[%emt 0:01:10]} 31. Rf2 {[%emt 0:02:03]} Qd5 {[%emt 0:01:14]} 32. Ref1 {[%emt 0:01:55]} Bg4 {[%emt 0:00:30]} 33. Ne4 {[%emt 0:01:24]} Qd7 {[%emt 0:00:38]} 34. Ng3 {[%emt 0:05:17]} Be6 {[%emt 0:00:56]} 35. Ne4 {[%emt 0:04:37]} Bg4 {[%emt 0:00:08]} 36. g3 {[%emt 0:02:28]} Rf5 {[%emt 0:01:48]} 37. Re1 {[%emt 0:01:45]} (37. Rh2 $11) 37... Rh5 {[%emt 0:00:53]} 38. Rh2 {[%emt 0:00:56]} Qf5 {[%emt 0:00:46]} 39. Rxh5 {[%emt 0:01:37]} Qxh5 {[%emt 0:00:24]} 40. Qh2 {[%emt 0:00:00]} Qf5 {[%emt 0:00:00]} 41. Qh4 {[%emt 0:04:28]} (41. Rf1 $11 {keeps the balance.}) 41... Qd7 {[%emt 0:10:28]} 42. Kg2 {[%emt 0:03:27]} Bf5 {[%emt 0:09:03]} 43. Nf2 {[%emt 0:04:01]} Be6 {[%emt 0:01:08]} 44. Rh1 {[%emt 0:03:48]} h5 45. Ne4 $11 Bd5 0-1

[Event "FIDE WCCC U12 2018"]
[Site "Santiago de Compostela"]
[Date "2018.11.12"]
[Round "8"]
[White "Hommer, Jeremy"]
[Black "Sethuraman, Sandeep"]
[Result "1/2-1/2"]
[ECO "C50"]
[WhiteElo "1987"]
[BlackElo "1837"]
[Annotator "NA RC"]
[PlyCount "116"]
[EventDate "2018.11.04"]
[EventType "swiss"]
[EventCountry "ESP"]
[SourceTitle "playchess.com"]
[Source "ChessBase"]
[SourceQuality "1"]
[TimeControl "40/5400+30:1800+30"]

1. e4 {[%emt 0:00:00]} e5 {[%emt 0:00:00]} 2. Nf3 {[%emt 0:00:00]} Nc6 {[%emt 0:00:00]} 3. Bc4 {[%emt 0:00:00]} Bc5 {[%emt 0:00:00]} 4. d3 {[%emt 0:00:02]} Nf6 {[%emt 0:00:00]} 5. Nbd2 {[%emt 0:00:18]} d6 {[%emt 0:00:05]} 6. c3 {[%emt 0:00:25]} O-O {[%emt 0:00:20]} 7. O-O {[%emt 0:00:18]} h6 {[%emt 0:00:59]} 8. h3 {[%emt 0:00:53]} a6 {[%emt 0:00:21]} 9. Bb3 {[%emt 0:00:16]} Be6 {[%emt 0:00:13]} 10. Bc2 {[%emt 0:00:27]} d5 {[%emt 0:00:57]} 11. exd5 {[%emt 0:02:44] C54: Giuoco Piano: 4 c3 Nf6, main lines with 5 d4 and 5 d3} Bxd5 {[%emt 0:02:50]} 12. Re1 {[%emt 0:00:36]} Re8 {[%emt 0:07:36]} 13. Nf1 {[%emt 0:00:28]} (13. b4 Bf8 14. Bb2 Qd7 15. Nf1 Rad8 16. Ng3 g6 17. a4 b5 18. Nd2 {1-0 (53) Hou,Y (2663)-Fressinet,L (2687) Almaty 2016}) 13... e4 {[%emt 0:03:57]} 14. dxe4 Bxe4 {[%emt 0:01:11]} 15. Bxe4 {[%emt 0:14:13]} Qxd1 {[%emt 0:02:02]} 16. Rxd1 {[%emt 0:01:06]} Nxe4 {[%emt 0:00:16]} 17. Be3 $146 {[%emt 0:00:49]} Rad8 {[%emt 0:01:45]} 18. Rdc1 {[%emt 0:15:34]} Ne5 {[%emt 0:08:50]} 19. Nxe5 {[%emt 0:06:27]} Rxe5 {[%emt 0:00:42]} 20. Rc2 {[%emt 0:01:25]} Red5 {[%emt 0:09:02]} 21. Bxc5 {[%emt 0:09:00]} Nxc5 {[%emt 0:01:37]} 22. b4 {[%emt 0:00:53]} Ne6 {[%emt 0:02:12]} 23. g3 {[%emt 0:00:50]} Rd3 {[%emt 0:03:33]} 24. Kg2 {[%emt 0:01:04]} g6 {[%emt 0:04:04]} 25. h4 {[%emt 0:07:36]} h5 {[%emt 0:01:31]} 26. a4 {[%emt 0:01:21]} c6 {[%emt 0:10:48]} 27. Ne3 {[%emt 0:03:29]} Rd2 {[%emt 0:01:50]} 28. Raa2 {[%emt 0:01:42]} Rxc2 {[%emt 0:01:02]} 29. Rxc2 {[%emt 0:00:06]} b5 {[%emt 0:01:54]} 30. a5 {[%emt 0:00:52]} c5 {[%emt 0:01:05]} 31. Kf1 {[%emt 0:02:14]} Kf8 {[%emt 0:02:02]} 32. Ke1 {[%emt 0:00:13]} Ke7 {[%emt 0:01:35]} 33. Rb2 {[%emt 0:14:04]} cxb4 {[%emt 0:03:55]} 34. Rxb4 {[%emt 0:01:09]} Nc5 {[%emt 0:01:54]} 35. Ke2 {[%emt 0:01:20]} Nb7 {[%emt 0:05:52]} 36. c4 {[%emt 0:03:57]} Nxa5 {[%emt 0:01:18]} 37. cxb5 {[%emt 0:00:15]} axb5 {[%emt 0:00:17]} 38. Rxb5 {[%emt 0:00:25]} Nc6 {[%emt 0:00:17]} 39. Rb7+ {[%emt 0:01:14]} Kf8 {[%emt 0:02:03]} 40. Nc4 {[%emt 0:00:00]} Re8+ {[%emt 0:00:00]} 41. Kf3 {[%emt 0:08:11]} Ne5+ {[%emt 0:04:37]} 42. Nxe5 {[%emt 0:00:14]} Rxe5 {[%emt 0:00:06]} 43. Kf4 {[%emt 0:00:47]} Rf5+ {[%emt 0:00:27]} 44. Ke3 {[%emt 0:00:20]} Re5+ {[%emt 0:00:21]} 45. Kf4 {[%emt 0:01:03]} Rf5+ {[%emt 0:00:08]} 46. Ke3 {[%emt 0:00:04]} Re5+ {[%emt 0:00:04]} 47. Kf3 {[%emt 0:00:17]} Kg7 {[%emt 0:01:02]} 48. Kg2 {[%emt 0:00:56]} Re2 {[%emt 0:00:44]} 49. Kf3 {[%emt 0:00:22]} Ra2 {[%emt 0:00:40]} 50. Rb4 $11 {[%emt 0:01:32]} Rc2 {[%emt 0:00:58]} 51. Ke3 {[%emt 0:01:17]} Rc3+ {[%emt 0:00:39]} 52. Kf4 {[%emt 0:00:20]} Rc6 {[%emt 0:00:36]} 53. f3 {[%emt 0:01:03]} Rf6+ {[%emt 0:00:22]} 54. Ke3 {[%emt 0:01:22]} Re6+ {[%emt 0:00:13]} 55. Kf2 {[%emt 0:00:10]} Ra6 {[%emt 0:00:36]} 56. g4 {[%emt 0:00:25]} hxg4 {[%emt 0:00:20]} 57. fxg4 {[%emt 0:00:07]} Ra2+ {[%emt 0:00:05]} 58. Kg3 {[%emt 0:00:21]} Ra3+ {[%emt 0:00:06]} 1/2-1/2

[Event "FIDE WCCC U12 2018"]
[Site "Santiago de Compostela"]
[Date "2018.11.12"]
[Round "8"]
[White "Amilal Munkhdalai"]
[Black "Clasby, Derek"]
[Result "1-0"]
[ECO "C77"]
[WhiteElo "1864"]
[BlackElo "2087"]
[Annotator "NA RC"]
[PlyCount "143"]
[EventDate "2018.11.04"]
[EventType "swiss"]
[EventCountry "ESP"]
[SourceTitle "playchess.com"]
[Source "ChessBase"]
[SourceQuality "1"]
[TimeControl "40/5400+30:1800+30"]

{[%evp 35,143,-14,-15,-41,-33,-48,-71,-95,-103,-233,-158,-151,-141,-145,-152,-142,-115,-147,-100,-100,-49,-109,-70,-69,32767,32767,-56,-75,-63,-62,-43,-43,-35,-47,0,0,0,-21,0,0,32767,32767,10,15,28,22,41,60,50,32767,52,57,86,32767,32767,32767,32767,32767,32767,32767,32767,153,103,135,171,145,150,171,197,153,270,70,195,195,180,242,277,279,321,371,437,464,765,483,397,236,293,0,535,32767,900,490,32767,1118,1214,1682,1314,6126,5069,29975,29941,29981,32767,32767,32767,32767,32767,29997,29997,29998]} 1. e4 {[%emt 0:00:00]} e5 {[%emt 0:00:00]} 2. Nf3 {[%emt 0:00:00]} Nc6 {[%emt 0:00:00]} 3. Bb5 {[%emt 0:00:00]} a6 {[%emt 0:00:03]} 4. Ba4 {[%emt 0:00:00]} Nf6 {[%emt 0:00:26]} 5. d3 {[%emt 0:00:07]} b5 {[%emt 0:04:35]} 6. Bb3 {[%emt 0:00:06]} Be7 {[%emt 0:00:22]} 7. O-O {[%emt 0:00:34]} d6 {[%emt 0:00:30]} 8. c3 {[%emt 0:00:08]} O-O {[%emt 0:00:58]} 9. h3 {[%emt 0:00:16]} Nb8 {[%emt 0:02:10]} 10. Re1 {[%emt 0:02:08]} Nbd7 {[%emt 0:01:59]} 11. Nbd2 {[%emt 0:00:20]} Bb7 {[%emt 0:05:49]} 12. Nf1 {[%emt 0:01:29]} Nc5 {[%emt 0:01:37]} 13. Bc2 {[%emt 0:00:10]} Re8 {[%emt 0:00:38]} 14. Ng3 {[%emt 0:02:55]} g6 {[%emt 0:01:23] C94: Closed Ruy Lopez: Breyer Variation with 10 d3} (14... Bf8 15. b4 Ncd7 16. a4 h6 17. d4 d5 18. dxe5 Nxe4 19. axb5 axb5 20. Rxa8 Bxa8 21. Bf4 c5 22. bxc5 Bxc5 23. Be3 Nxc3 {½-½ (41) Vidit,S (2707)-Yu,Y (2760) Liaocheng 2018}) 15. Be3 {[%emt 0:00:38]} Bf8 {[%emt 0:01:27]} 16. Qe2 {[%emt 0:05:41]} Qe7 {[%emt 0:03:50]} 17. Rad1 {[%emt 0:05:34]} Bg7 {[%emt 0:03:28]} 18. Nf1 $146 {[%emt 0:08:07]} ({Predecessor:} 18. Bb1 Rad8 19. Qd2 Qf8 20. b4 Ne6 21. d4 Nd7 22. d5 {½-½ (67) Novosadova,K (2211)-Zimina,O (2349) Zillertal 2015}) 18... Ne6 {[%emt 0:03:41]} 19. N1d2 {[%emt 0:01:32]} c5 {[%emt 0:01:25]} 20. a4 {[%emt 0:07:00]} d5 {[%emt 0:07:43]} 21. exd5 {[%emt 0:06:03]} Nxd5 {[%emt 0:00:10]} 22. Nb3 {[%emt 0:00:25]} (22. Bb3 $17) 22... Qc7 {[%emt 0:05:39]} 23. Qf1 {[%emt 0:07:39]} bxa4 {[%emt 0:01:48]} 24. Nbd2 {[%emt 0:01:11] [#]} a3 $1 {[%emt 0:01:00]} 25. bxa3 {[%emt 0:00:18]} Nxc3 {[%emt 0:00:30]} 26. Rc1 {[%emt 0:00:02]} Nd4 {[%emt 0:04:15]} 27. Bb3 {[%emt 0:00:23]} Ncb5 {[%emt 0:01:02]} (27... Nxb3 $17 28. Rxc3 Nd4) 28. Bxd4 {[%emt 0:02:19]} (28. a4 $15 Bxf3 29. axb5) 28... Nxd4 {[%emt 0:07:40]} (28... exd4 $17 29. Ng5 Rf8) 29. Nxd4 {[%emt 0:00:08]} exd4 {[%emt 0:00:12]} 30. Ne4 {[%emt 0:00:03]} Bxe4 {[%emt 0:08:07]} 31. Rxe4 {[%emt 0:00:09]} Rxe4 {[%emt 0:00:23]} 32. dxe4 {[%emt 0:00:04]} Bh6 {[%emt 0:00:43]} 33. Rb1 {[%emt 0:00:24]} Rb8 {[%emt 0:05:43]} 34. Bc4 {[%emt 0:00:19]} Bf4 {[%emt 0:02:27]} 35. Rxb8+ {[%emt 0:10:24]} Qxb8 {[%emt 0:00:05]} 36. Bxa6 {[%emt 0:00:06]} Qb2 {[%emt 0:03:23]} 37. g3 {[%emt 0:00:22]} Bc1 {[%emt 0:04:26]} 38. a4 {[%emt 0:00:16]} Bd2 {[%emt 0:02:09]} 39. Bb5 {[%emt 0:01:54]} Bb4 {[%emt 0:01:09]} 40. Qd3 {[%emt 0:00:00]} h5 {[%emt 0:00:00]} 41. Kg2 {[%emt 0:09:52]} Kg7 {[%emt 0:09:24]} 42. Bc4 {[%emt 0:00:47]} Qc3 {[%emt 0:01:49]} 43. Qe2 {[%emt 0:00:25]} h4 {[%emt 0:23:57]} 44. gxh4 {[%emt 0:01:21]} Qc1 {[%emt 0:02:19]} 45. e5 {[%emt 0:02:22]} Qf4 {[%emt 0:01:23]} 46. e6 {[%emt 0:00:06]} fxe6 {[%emt 0:00:22]} 47. Qxe6 {[%emt 0:00:07]} Qf6 {[%emt 0:04:05]} 48. Qxf6+ {[%emt 0:07:07]} Kxf6 {[%emt 0:00:06]} 49. f4 {[%emt 0:00:19]} Ba5 {[%emt 0:02:08]} 50. Kf3 {[%emt 0:00:08]} Kf5 {[%emt 0:01:07]} 51. Bd3+ {[%emt 0:00:45]} Kf6 {[%emt 0:00:51]} 52. Ke4 {[%emt 0:03:21]} Ke6 {[%emt 0:00:54]} 53. Bc4+ {[%emt 0:00:12]} Kf6 {[%emt 0:00:09]} 54. Be2 {[%emt 0:00:05]} Ke6 {[%emt 0:01:29]} 55. h5 {[%emt 0:00:07]} gxh5 {[%emt 0:00:02]} 56. Bxh5 {[%emt 0:00:06]} Be1 {[%emt 0:01:03]} 57. Be2 {[%emt 0:01:39]} Kf6 {[%emt 0:00:38]} 58. Kf3 {[%emt 0:03:19]} Ke6 {[%emt 0:00:34] [#]} 59. Bc4+ $1 {[%emt 0:01:08]} Kf5 {[%emt 0:00:23]} 60. Bb5 {[%emt 0:00:48]} Ke6 {[%emt 0:00:31]} 61. Bc4+ {[%emt 0:01:30]} ({White must play} 61. Ke4 $18 Kf6 {[#]} 62. h4 $1 {[%mdl 512]}) 61... Kf5 {[%emt 0:00:25]} 62. Bd3+ {[%emt 0:01:18]} Ke6 {[%emt 0:00:16]} 63. Ke4 {[%emt 0:00:05]} Kf6 {[%emt 0:00:25]} 64. Kd5 {[%emt 0:00:39]} Bd2 {[%emt 0:00:45]} 65. f5 {[%emt 0:00:04]} Bb4 {[%emt 0:00:44]} 66. h4 {[%emt 0:00:48]} Kg7 {[%emt 0:01:29]} 67. Ke6 {[%emt 0:00:12]} Kf8 {[%emt 0:00:07]} 68. f6 {[%emt 0:00:20]} Kg8 {[%emt 0:00:13]} 69. h5 {[%emt 0:00:15]} Kf8 {[%emt 0:00:05]} 70. h6 {[%emt 0:00:06]} Kg8 {[%emt 0:00:04]} 71. f7+ {[%emt 0:00:10]} Kf8 {[%emt 0:00:06]} 72. h7 {[%emt 0:00:05]} 1-0

[Event "FIDE WCCC U12 2018"]
[Site "Santiago de Compostela"]
[Date "2018.11.12"]
[Round "8"]
[White "Deng Yu Dong Michael"]
[Black "Xu, Arthur"]
[Result "0-1"]
[ECO "D07"]
[WhiteElo "1863"]
[BlackElo "2034"]
[Annotator "NA RC"]
[PlyCount "118"]
[EventDate "2018.11.04"]
[EventType "swiss"]
[EventCountry "ESP"]
[SourceTitle "playchess.com"]
[Source "ChessBase"]
[SourceQuality "1"]
[TimeControl "40/5400+30:1800+30"]

1. d4 {[%emt 0:00:00]} d5 {[%emt 0:00:00]} 2. c4 {[%emt 0:00:00]} Nc6 {[%emt 0:00:00]} 3. Nf3 {[%emt 0:00:04]} Bg4 {[%emt 0:00:00]} 4. Nc3 {[%emt 0:00:27]} e6 {[%emt 0:00:11]} 5. Bf4 {[%emt 0:00:28]} Bd6 {[%emt 0:00:11] D07: Damengambit (Tschigorin-Verteidigung)} (5... Bxf3 6. gxf3 Bb4 7. e3 Nge7 8. Qc2 dxc4 9. Bxc4 Nd5 10. Bg3 h5 11. h3 Qd7 12. O-O-O O-O-O 13. Ne4 {½-½ (35) Gelfand,B (2740)-Ivanchuk,V (2757) London 2013 CBM 154 [Krasenkow,M]}) 6. Bg3 {[%emt 0:00:23]} Nge7 {[%emt 0:00:54]} 7. e3 {[%emt 0:00:55]} O-O {[%emt 0:00:57]} 8. Rc1 {[%emt 0:00:48]} a6 $146 {[%emt 0:11:08]} ({Vorgänger:} 8... dxc4 9. Bxc4 e5 10. dxe5 Bxf3 11. Qxf3 Bxe5 12. O-O Bxg3 13. Qxg3 Qd6 14. Qxd6 cxd6 {1-0 (30) Halkias,S (2579)-Kristjansson,S (2477) Reykjavik 2008}) 9. a3 {[%emt 0:04:12]} Qd7 {[%emt 0:08:23]} 10. b4 {[%emt 0:03:22]} f5 {[%emt 0:02:28]} 11. c5 {[%emt 0:02:37]} Bxg3 {[%emt 0:02:02]} 12. hxg3 {[%emt 0:00:17]} e5 {[%emt 0:11:20]} 13. dxe5 {[%emt 0:11:18]} Bxf3 {[%emt 0:04:30]} 14. Qxf3 {[%emt 0:07:28]} (14. gxf3 $16 Nxe5 15. f4) 14... Nxe5 {[%emt 0:03:02]} 15. Qh5 {[%emt 0:04:23]} h6 {[%emt 0:01:35]} 16. Be2 {[%emt 0:02:04]} c6 {[%emt 0:11:38]} 17. O-O {[%emt 0:06:41]} Qe6 {[%emt 0:06:06]} 18. Rfd1 {[%emt 0:02:24]} N7g6 {[%emt 0:03:19]} (18... Kh7 $11) 19. Rd4 {[%emt 0:02:09]} (19. f4 $14) 19... Qf6 {[%emt 0:04:06]} 20. Rcd1 {[%emt 0:04:37]} Rad8 {[%emt 0:04:34]} 21. Na4 {[%emt 0:17:35]} Rf7 {[%emt 0:07:42]} 22. Nb6 {[%emt 0:01:48]} Nf8 {[%emt 0:01:34]} 23. g4 {[%emt 0:12:44]} ({Better is} 23. f4 $15 Ned7 24. Nxd7 Nxd7 25. g4) 23... Ne6 {[%emt 0:04:56]} ({Reject} 23... Nxg4 $6 24. Bxg4 fxg4 25. Rf4 $11) ({Much worse is} 23... fxg4 $6 24. Rf4 $15) 24. R4d2 $2 {[%emt 0:03:17]} (24. Qxf5 $17 Nxd4 25. exd4) 24... fxg4 {[%emt 0:01:54]} 25. Rf1 {[%emt 0:09:08]} Ng5 {[%emt 0:02:03]} 26. Rd4 {[%emt 0:00:43]} Ne4 {[%emt 0:01:36]} 27. Bxg4 $2 {[%emt 0:01:49]} (27. Rxe4 {keeps fighting.} dxe4 28. Nc4 Nf3+ 29. Bxf3 gxf3 30. g3) 27... g6 {[%emt 0:00:20]} 28. Qh3 {[%emt 0:00:20]} Nxf2 {[%emt 0:01:58]} 29. Qg3 {[%emt 0:00:05]} Nh3+ {[%emt 0:01:28]} 30. Bxh3 {[%emt 0:00:11]} Qxf1+ {[%emt 0:00:06]} 31. Kh2 {[%emt 0:00:00]} Qf6 {[%emt 0:01:25]} 32. Rf4 {[%emt 0:01:42]} Qe7 {[%emt 0:00:38]} 33. Nc8 {[%emt 0:00:23]} Qg5 {[%emt 0:02:48]} 34. Be6 {[%emt 0:00:34]} Qxg3+ {[%emt 0:00:21]} 35. Kxg3 {[%emt 0:00:01]} Kg7 {[%emt 0:00:27]} 36. Bxf7 {[%emt 0:00:22]} Nxf7 {[%emt 0:00:18]} 37. Nb6 {[%emt 0:00:07]} Re8 {[%emt 0:00:23]} 38. Kf2 {[%emt 0:01:33]} g5 {[%emt 0:00:40]} 39. Rd4 {[%emt 0:00:17]} Ne5 {[%emt 0:00:29]} 40. a4 {[%emt 0:00:00]} h5 {[%emt 0:00:00]} 41. Ke2 {[%emt 0:06:00]} Ng4 {[%emt 0:01:10]} 42. Rd3 {[%emt 0:00:30]} Re4 {[%emt 0:01:47]} 43. b5 {[%emt 0:01:39]} a5 {[%emt 0:11:31]} 44. bxc6 {[%emt 0:04:02]} (44. Nc8 $142) 44... bxc6 {[%emt 0:00:03]} 45. Kd2 {[%emt 0:00:14]} Kf7 {[%emt 0:01:48]} 46. Rd4 {[%emt 0:02:14]} Ke6 {[%emt 0:09:59]} ({Better is} 46... Nf6 $19 47. Nc8 Re6 48. Nd6+ Kg6) 47. Rxe4+ {[%emt 0:05:49]} dxe4 {[%emt 0:00:02]} 48. Nc4 {[%emt 0:00:55]} Ne5 {[%emt 0:01:48]} 49. Nxa5 $19 {[%emt 0:02:42]} Kd5 {[%emt 0:00:06]} 50. Nb3 {[%emt 0:05:49]} Nd3 {[%emt 0:01:06]} 51. Kc3 {[%emt 0:02:28]} Nxc5 {[%emt 0:00:22]} 52. a5 {[%emt 0:01:09]} Nxb3 {[%emt 0:02:27]} 53. Kxb3 {[%emt 0:01:49]} Kc5 {[%emt 0:00:39]} 54. a6 {[%emt 0:00:39]} Kb6 {[%emt 0:00:04]} 55. Kc4 {[%emt 0:00:25]} h4 {[%emt 0:01:15]} 56. Kd4 {[%emt 0:00:04]} g4 {[%emt 0:00:03]} 57. Kxe4 {[%emt 0:00:07]} h3 {[%emt 0:00:17]} 58. gxh3 {[%emt 0:00:15]} gxh3 {[%emt 0:00:04]} 59. Kf3 {[%emt 0:00:03]} c5 {[%emt 0:00:11]} 0-1